fUST/lending_fUST_20240826
["ID","MTS","AMOUNT","RATE_DAILY","PERIOD"]
[335960776,1724644241374,-523.89,0.00012095,2]
[335960778,1724644241384,-429.47140615,0.00012095,2]
[335960780,1724644241394,-500.0,0.00012095,2]
[335960782,1724644241404,-502.77811673,0.00012095,2]
[335960784,1724644241415,-500.0,0.00012095,2]
[335960787,1724644241425,-500.0,0.00012095,2]
[335960789,1724644241435,-500.0,0.00012095,2]
[335960791,1724644241444,-500.0,0.00012095,2]
[335960793,1724644241462,-500.0,0.00012095,2]
[335960795,1724644241472,-500.0,0.00012095,2]
[335960797,1724644241482,-1098.74,0.00012095,2]
[335960799,1724644241491,-500.0,0.00012095,2]
[335960801,1724644241501,-500.0,0.00012095,2]
[335960803,1724644241512,-500.0,0.00012095,2]
[335960805,1724644241524,-503.91446218,0.00012095,2]
[335960807,1724644241534,-500.0,0.00012095,2]
[335960809,1724644241546,-500.0,0.00012095,2]
[335960812,1724644241559,-500.0,0.00012095,2]
[335960814,1724644241569,-548.8,0.00012095,2]
[335960816,1724644241579,-1087.36,0.00012095,2]
[335960818,1724644241589,-553.63673576,0.00012095,2]
[335960820,1724644241599,-500.0,0.00012095,2]
[335960822,1724644241609,-547.6,0.00012095,2]
[335960824,1724644241619,-500.0,0.00012095,2]
[335960826,1724644241628,-500.0,0.00012095,2]
[335960828,1724644241637,-338.62963851,0.00012095,2]
[335960830,1724644241647,-500.0,0.00012095,2]
[335960832,1724644241657,-1242.76,0.00012095,2]
[335960834,1724644241667,-1092.94,0.00012095,2]
[335960836,1724644241677,-500.0,0.00012095,2]
[335960838,1724644241686,-500.0,0.00012095,2]
[335960840,1724644241696,-833.3,0.00012095,2]
[335960842,1724644241705,-1077.23,0.00012095,2]
[335960863,1724644241715,-500.0,0.00012095,2]
[335960866,1724644241916,-631.51,0.00012095,2]
[335960868,1724644241928,-910.85,0.00012095,2]
[335960870,1724644241940,-500.0,0.00012095,2]
[335960872,1724644241955,-500.0,0.00012095,2]
[335960874,1724644241965,-505.02,0.00012095,2]
[335960876,1724644241975,-515.77,0.00012095,2]
[335960878,1724644241985,-500.0,0.00012095,2]
[335960880,1724644241995,-538.24702387,0.00012095,2]
[335960882,1724644242004,-500.0,0.00012095,2]
[335960884,1724644242015,-1000.01,0.00012095,2]
[335960886,1724644242025,-500.0,0.00012095,2]
[335960888,1724644242035,-755.58,0.00012095,2]
[335960890,1724644242045,-500.0,0.00012095,2]
[335960892,1724644242054,-500.0,0.00012095,2]
[335960894,1724644242064,-500.0,0.00012095,2]
[335960897,1724644242074,-675.85,0.00012095,2]
[335960898,1724644242084,-1033.41,0.00012095,2]
[335960899,1724644242094,-500.0,0.00012095,2]
[335960900,1724644242104,-860.35,0.00012095,2]
[335960901,1724644242115,-500.0,0.00012095,2]
[335960902,1724644242125,-500.0,0.00012095,2]
[335960903,1724644242135,-500.0,0.00012095,2]
[335960904,1724644242145,-500.0,0.00012095,2]
[335960905,1724644242154,-500.0,0.00012095,2]
[335960906,1724644242164,-500.0,0.00012095,2]
[335960907,1724644242174,-500.0,0.00012095,2]
[335960908,1724644242183,-500.0,0.00012095,2]
[335960909,1724644242193,-685.38,0.00012095,2]
[335960911,1724644242203,-500.0,0.00012095,2]
[335960913,1724644242213,-500.0,0.00012095,2]
[335960915,1724644242222,-500.0,0.00012095,2]
[335960916,1724644242231,-554.79,0.00012095,2]
[335960918,1724644242241,-500.0,0.00012095,2]
[335960921,1724644242250,-500.0,0.00012095,2]
[335960923,1724644242260,-847.4,0.00012095,2]
[335960925,1724644242270,-500.0,0.00012095,2]
[335960927,1724644242279,-500.0,0.00012095,2]
[335960929,1724644242288,-500.0,0.00012095,2]
[335960931,1724644242298,-743.78,0.00012095,2]
[335960933,1724644242307,-500.0,0.00012095,2]
[335960935,1724644242317,-500.0,0.00012095,2]
[335960937,1724644242327,-500.0,0.00012095,2]
[335960939,1724644242336,-500.0,0.00012095,2]
[335960940,1724644242345,-809.79,0.00012095,2]
[335960942,1724644242355,-544.4,0.00012095,2]
[335960944,1724644242364,-1201.67,0.00012095,2]
[335960946,1724644242373,-523.12602521,0.00012095,2]
[335960948,1724644242383,-645.22,0.00012095,2]
[335960950,1724644242392,-500.0,0.00012095,2]
[335960952,1724644242402,-546.13,0.00012095,2]
[335960954,1724644242411,-506.41,0.00012095,2]
[335960956,1724644242421,-1048.1,0.00012095,2]
[335960958,1724644242430,-501.19927622,0.00012095,2]
[335960960,1724644242440,-646.33,0.00012095,2]
[335960963,1724644242450,-500.0,0.00012095,2]
[335960964,1724644242459,-820.84,0.00012095,2]
[335960966,1724644242469,-500.0,0.00012095,2]
[335960968,1724644242479,-500.0,0.00012095,2]
[335960971,1724644242488,-500.0,0.00012095,2]
[335960972,1724644242498,-500.0,0.00012095,2]
[335960974,1724644242508,-569.13,0.00012095,2]
[335960976,1724644242518,-1034.09,0.00012095,2]
[335960978,1724644242527,-500.0,0.00012095,2]
[335960980,1724644242537,-720.83,0.00012095,2]
[335960982,1724644242547,-529.02,0.00012095,2]
[335960984,1724644242557,-589.78,0.00012095,2]
[335960986,1724644242566,-500.0,0.00012095,2]
[335960988,1724644242575,-783.53,0.00012095,2]
[335960990,1724644242585,-699.31,0.00012095,2]
[335960992,1724644242594,-500.0,0.00012095,2]
[335960994,1724644242604,-833.58,0.00012095,2]
[335960996,1724644242613,-651.4,0.00012095,2]
[335960998,1724644242623,-538.08,0.00012095,2]
[335961000,1724644242633,-500.0,0.00012095,2]
[335961002,1724644242642,-706.92,0.00012095,2]
[335961004,1724644242652,-1152.17,0.00012095,2]
[335961006,1724644242662,-547.5,0.00012095,2]
[335961008,1724644242672,-500.0,0.00012095,2]
[335961010,1724644242681,-500.0,0.00012095,2]
[335961012,1724644242690,-500.0,0.00012095,2]
[335961014,1724644242701,-500.0,0.00012095,2]
[335961016,1724644242710,-500.0,0.00012095,2]
[335961018,1724644242719,-500.0,0.00012095,2]
[335961020,1724644242729,-500.0,0.00012095,2]
[335961022,1724644242738,-802.42,0.00012095,2]
[335961024,1724644242747,-500.0,0.00012095,2]
[335961026,1724644242756,-597.94,0.00012095,2]
[335961028,1724644242766,-500.0,0.00012095,2]
[335961030,1724644242775,-500.0,0.00012095,2]
[335961032,1724644242785,-1086.69,0.00012095,2]
[335961034,1724644242797,-500.0,0.00012095,2]
[335961036,1724644242807,-500.0,0.00012095,2]
[335961038,1724644242818,-670.46,0.00012095,2]
[335961040,1724644242828,-799.27,0.00012095,2]
[335961042,1724644242838,-507.22,0.00012095,2]
[335961044,1724644242848,-500.52142647,0.00012095,2]
[335961047,1724644242857,-500.0,0.00012095,2]
[335961050,1724644242868,-500.75758708,0.00012095,2]
[335961052,1724644242878,-500.8628679,0.00012095,2]
[335961054,1724644242888,-500.0,0.00012095,2]
[335961056,1724644242897,-428.75156755,0.00012095,2]
[335961059,1724644242907,-500.9291722,0.00012095,2]
[335961062,1724644242917,-1276.26,0.00012095,2]
[335961065,1724644242927,-510.0432776,0.00012095,2]
[335961066,1724644242942,-500.88101691,0.00012095,2]
[335961069,1724644242952,-500.0,0.00012095,2]
[335961072,1724644242974,-658.83,0.00012095,2]
[335961075,1724644242984,-622.01,0.00012095,2]
[335961077,1724644242994,-894.48,0.00012095,2]
[335961079,1724644243003,-661.34,0.00012095,2]
[335961081,1724644243013,-776.52,0.00012095,2]
[335961083,1724644243025,-725.92,0.00012095,2]
[335961085,1724644243035,-609.61,0.00012095,2]
[335961088,1724644243045,-501.40732476,0.00012095,2]
[335961090,1724644243054,-500.0,0.00012095,2]
[335961091,1724644243064,-500.0,0.00012095,2]
[335961093,1724644243073,-500.0,0.00012095,2]
[335961095,1724644243082,-500.0,0.00012095,2]
[335961097,1724644243092,-500.0,0.00012095,2]
[335961099,1724644243101,-500.0,0.00012095,2]
[335961102,1724644243110,-500.0,0.00012095,2]
[335961104,1724644243119,-501.1805588,0.00012097,2]
[335961105,1724644243128,-500.0,0.00012097,2]
[335961108,1724644243137,-500.68298531,0.00012097,2]
[335961110,1724644243147,-500.0,0.00012097,2]
[335961112,1724644243157,-500.0,0.00012097,2]
[335961114,1724644243166,-500.0,0.00012097,2]
[335961116,1724644243175,-500.0,0.00012097,2]
[335961118,1724644243185,-500.0,0.00012097,2]
[335961120,1724644243194,-500.0,0.00012097,2]
[335961122,1724644243205,-569.97573911,0.0001212,2]
[335961124,1724644243215,-7018.31243865,0.00012163,2]
[335961126,1724644243225,-500.0,0.00012347,2]
[335961128,1724644243234,-500.0,0.00012349,2]
[335961130,1724644243243,-675.53,0.00012349,2]
[335961132,1724644243253,-732.51,0.00012349,2]
[335961134,1724644243262,-500.0,0.00012349,2]
[335961136,1724644243272,-500.0,0.00012349,2]
[335961138,1724644243281,-500.0,0.00012349,2]
[335961140,1724644243291,-500.0,0.00012349,2]
[335961142,1724644243300,-500.0,0.00012349,2]
[335961144,1724644243309,-509.36192606,0.00012349,2]
[335961146,1724644243319,-500.0,0.00012349,2]
[335961148,1724644243328,-526.74,0.00012349,2]
[335961150,1724644243337,-500.0,0.00012349,2]
[335961152,1724644243346,-500.0,0.00012349,2]
[335961154,1724644243356,-500.0,0.00012349,2]
[335961156,1724644243366,-500.0,0.00012349,2]
[335961158,1724644243376,-273.53139726,0.00012349,2]
[335961160,1724644243385,-500.0,0.00012349,2]
[335961162,1724644243395,-163.05606085,0.00012349,2]
[335961164,1724644243404,-500.0,0.00012349,2]
[335961166,1724644243414,-500.0,0.00012349,2]
[335961168,1724644243423,-500.0,0.00012349,2]
[335961170,1724644243433,-500.0,0.00012349,2]
[335961172,1724644243443,-500.0,0.00012349,2]
[335961174,1724644243454,-500.0,0.00012349,2]
[335961176,1724644243465,-591.65,0.00012349,2]
[335961178,1724644243475,-500.0,0.00012349,2]
[335961180,1724644243484,-611.14,0.00012349,2]
[335961182,1724644243493,-500.0,0.00012349,2]
[335961184,1724644243503,-500.0,0.00012349,2]
[335961186,1724644243514,-500.0,0.00012349,2]
[335961188,1724644243523,-809.34,0.00012349,2]
[335961190,1724644243533,-500.0,0.00012349,2]
[335961192,1724644243543,-632.92,0.00012349,2]
[335961194,1724644243552,-500.0,0.00012349,2]
[335961196,1724644243562,-500.0,0.00012349,2]
[335961198,1724644243571,-500.0,0.00012349,2]
[335961200,1724644243581,-283.92382111,0.00012349,2]
[335961202,1724644243590,-877.96,0.00012349,2]
[335961204,1724644243600,-500.0,0.00012349,2]
[335961206,1724644243609,-500.0,0.00012349,2]
[335961208,1724644243620,-500.0,0.00012349,2]
[335961211,1724644243630,-7465.9,0.00012349,2]
[335961213,1724644243639,-500.0,0.00012349,2]
[335961215,1724644243649,-500.0,0.00012349,2]
[335961217,1724644243659,-500.0,0.00012349,2]
[335961219,1724644243668,-500.0,0.00012349,2]
[335961221,1724644243678,-500.0,0.00012349,2]
[335961223,1724644243687,-500.0,0.00012349,2]
[335961225,1724644243696,-500.0,0.00012349,2]
[335961227,1724644243707,-500.0,0.00012349,2]
[335961229,1724644243716,-649.87,0.00012349,2]
[335961231,1724644243726,-500.0,0.00012349,2]
[335961233,1724644243735,-500.0,0.00012349,2]
[335961235,1724644243744,-500.0,0.00012349,2]
[335961237,1724644243755,-500.0,0.00012349,2]
[335961239,1724644243765,-857.75,0.00012349,2]
[335961241,1724644243775,-500.0,0.00012349,2]
[335961243,1724644243784,-500.0,0.00012349,2]
[335961245,1724644243798,-500.0,0.00012349,2]
[335961247,1724644243807,-519.56,0.00012349,2]
[335961249,1724644243817,-500.0,0.00012349,2]
[335961251,1724644243827,-10385.65,0.00012349,2]
[335961253,1724644243839,-277.641212,0.00012349,2]
[335961255,1724644243848,-500.0,0.00012349,2]
[335961257,1724644243858,-508.41,0.00012349,2]
[335961259,1724644243868,-500.0,0.00012349,2]
[335961261,1724644243878,-568.69,0.00012349,2]
[335961263,1724644243887,-1133.72762021,0.00012356,2]
[335961265,1724644243897,-2167.77324026,0.00012356,2]
[335961267,1724644243906,-2597.51595188,0.00012356,2]
[335961269,1724644243916,-655.59,0.00012358,2]
[335961271,1724644243926,-854.68,0.00012358,2]
[335961273,1724644243935,-500.0,0.00012358,2]
[335961275,1724644243945,-614.41,0.00012358,2]
[335961277,1724644243955,-445.77517727,0.00012358,2]
[335961279,1724644243965,-500.0,0.00012358,2]
[335961281,1724644243975,-500.0,0.00012358,2]
[335961283,1724644243984,-500.0,0.00012358,2]
[335961285,1724644243995,-500.0,0.00012358,2]
[335961287,1724644244005,-500.0,0.00012358,2]
[335961289,1724644244015,-884.48,0.00012358,2]
[335961291,1724644244024,-957.99,0.00012358,2]
[335961294,1724644244035,-500.0,0.00012358,2]
[335961296,1724644244045,-538.85,0.00012358,2]
[335961298,1724644244055,-679.87,0.00012358,2]
[335961300,1724644244065,-783.11,0.00012358,2]
[335961302,1724644244074,-725.12,0.00012358,2]
[335961304,1724644244084,-786.46,0.00012358,2]
[335961306,1724644244094,-537.72,0.00012358,2]
[335961308,1724644244104,-897.21,0.00012358,2]
[335961310,1724644244113,-599.08,0.00012358,2]
[335961312,1724644244123,-501.31729394,0.00012358,2]
[335961314,1724644244133,-500.0,0.00012358,2]
[335961316,1724644244142,-1103.7,0.00012358,2]
[335961318,1724644244152,-500.0,0.00012358,2]
[335961320,1724644244162,-604.94,0.00012358,2]
[335961322,1724644244171,-1037.53,0.00012358,2]
[335961324,1724644244181,-500.0,0.00012358,2]
[335961326,1724644244190,-500.0,0.00012358,2]
[335961328,1724644244200,-660.08,0.00012358,2]
[335961330,1724644244210,-500.0,0.00012358,2]
[335961332,1724644244220,-539.27,0.00012358,2]
[335961334,1724644244230,-864.06,0.00012358,2]
[335961336,1724644244240,-500.0,0.00012358,2]
[335961338,1724644244250,-500.0,0.00012358,2]
[335961340,1724644244259,-500.0,0.00012358,2]
[335961342,1724644244268,-626.34,0.00012358,2]
[335961344,1724644244278,-991.58,0.00012358,2]
[335961346,1724644244288,-500.0,0.00012358,2]
[335961348,1724644244298,-556.04,0.00012358,2]
[335961355,1724644244360,-500.0,0.00012358,2]
[335961358,1724644244371,-586.47,0.00012358,2]
[335961360,1724644244380,-656.62,0.00012358,2]
[335961362,1724644244390,-559.87,0.00012358,2]
[335961364,1724644244399,-767.01,0.00012358,2]
[335961366,1724644244408,-500.0,0.00012358,2]
[335961368,1724644244418,-500.0,0.00012358,2]
[335961370,1724644244427,-553.91,0.00012358,2]
[335961372,1724644244437,-681.56,0.00012358,2]
[335961374,1724644244446,-11521.45,0.00012358,2]
[335961376,1724644244457,-762.06,0.00012358,2]
[335961378,1724644244475,-738.92,0.00012358,2]
[335961380,1724644244484,-500.0,0.00012358,2]
[335961382,1724644244494,-500.0,0.00012358,2]
[335961384,1724644244503,-505.18,0.00012358,2]
[335961386,1724644244512,-500.0,0.00012358,2]
[335961388,1724644244522,-671.68,0.00012358,2]
[335961390,1724644244531,-3055.77,0.00012358,2]
[335961392,1724644244541,-562.9,0.00012358,2]
[335961394,1724644244550,-500.0,0.00012358,2]
[335961396,1724644244559,-500.0,0.00012358,2]
[335961398,1724644244568,-500.0,0.00012358,2]
[335961400,1724644244578,-531.63,0.00012358,2]
[335961402,1724644244587,-879.92,0.00012358,2]
[335961404,1724644244596,-771.45,0.00012358,2]
[335961406,1724644244605,-500.0,0.00012358,2]
[335961408,1724644244615,-2463.76,0.00012358,2]
[335961410,1724644244624,-654.28,0.00012358,2]
[335961412,1724644244634,-2827.26,0.00012358,2]
[335961414,1724644244642,-500.0,0.00012358,2]
[335961416,1724644244653,-500.0,0.00012358,2]
[335961418,1724644244663,-890.75,0.00012358,2]
[335961420,1724644244672,-500.0,0.00012358,2]
[335961422,1724644244682,-500.0,0.00012358,2]
[335961424,1724644244691,-753.47,0.00012358,2]
[335961426,1724644244702,-500.0,0.00012358,2]
[335961428,1724644244713,-1337.29,0.00012358,2]
[335961430,1724644244723,-628.93,0.00012358,2]
[335961432,1724644244732,-500.0,0.00012358,2]
[335961434,1724644244742,-790.7,0.00012358,2]
[335961436,1724644244751,-562.53,0.00012358,2]
[335961438,1724644244760,-622.54,0.00012358,2]
[335961440,1724644244769,-1122.96,0.00012358,2]
[335961442,1724644244779,-500.0,0.00012358,2]
[335961444,1724644244789,-500.0,0.00012358,2]
[335961446,1724644244800,-569.39,0.00012358,2]
[335961448,1724644244810,-885.69,0.00012358,2]
[335961450,1724644244820,-16615.41,0.00012358,2]
[335961452,1724644244830,-500.0,0.00012358,2]
[335961454,1724644244840,-500.0,0.00012358,2]
[335961456,1724644244849,-3799.25,0.00012358,2]
[335961458,1724644244859,-3802.3,0.00012358,2]
[335961460,1724644244870,-792.37,0.00012358,2]
[335961462,1724644244880,-755.93,0.00012358,2]
[335961464,1724644244889,-500.0,0.00012358,2]
[335961466,1724644244898,-500.0,0.00012358,2]
[335961468,1724644244907,-500.0,0.00012358,2]
[335961470,1724644244917,-500.0,0.00012358,2]
[335961472,1724644244926,-910.82,0.00012358,2]
[335961474,1724644244935,-1709.24,0.00012358,2]
[335961476,1724644244945,-638.2,0.00012358,2]
[335961478,1724644244955,-557.71,0.00012358,2]
[335961480,1724644244964,-649.73,0.00012358,2]
[335961482,1724644244973,-736.07,0.00012358,2]
[335961484,1724644244984,-2854.34,0.00012358,2]
[335961486,1724644244993,-1100.48,0.00012358,2]
[335961488,1724644245003,-500.0,0.00012358,2]
[335961490,1724644245012,-746.83,0.00012358,2]
[335961492,1724644245022,-764.16,0.00012358,2]
[335961494,1724644245031,-500.0,0.00012358,2]
[335961496,1724644245041,-500.0,0.00012358,2]
[335961498,1724644245050,-1159.88,0.00012358,2]
[335961499,1724644245060,-1268.49,0.00012358,2]
[335961500,1724644245070,-1394.56,0.0001236,2]
[335961501,1724644245079,-955.27,0.0001236,2]
[335961502,1724644245088,-576.91,0.0001236,2]
[335961503,1724644245097,-1173.26,0.0001236,2]
[335961504,1724644245106,-2282.71,0.0001236,2]
[335961505,1724644245115,-5343.18,0.0001236,2]
[335961506,1724644245125,-500.0,0.0001236,2]
[335961507,1724644245134,-500.0,0.0001236,2]
[335961508,1724644245143,-547.52,0.0001236,2]
[335961509,1724644245152,-816.61,0.0001236,2]
[335961510,1724644245161,-500.0,0.0001236,2]
[335961512,1724644245171,-500.0,0.0001236,2]
[335961514,1724644245180,-500.0,0.0001236,2]
[335961516,1724644245189,-500.0,0.0001236,2]
[335961518,1724644245199,-673.79,0.0001236,2]
[335961520,1724644245210,-10088.08,0.0001236,2]
[335961522,1724644245218,-716.54,0.0001236,2]
[335961523,1724644245228,-689.59,0.0001236,2]
[335961526,1724644245237,-27875.82946941,0.00012369,5]
[335961528,1724644245247,-500.0,0.00012369,2]
[335961530,1724644245256,-500.0,0.00012369,2]
[335961532,1724644245266,-500.0,0.00012369,2]
[335961534,1724644245275,-500.0,0.00012369,2]
[335961535,1724644245284,-500.0,0.00012369,2]
[335961538,1724644245294,-500.0,0.00012369,2]
[335961540,1724644245303,-1101.97,0.00012369,2]
[335961541,1724644245312,-500.0,0.00012369,2]
[335961544,1724644245321,-500.0,0.00012369,2]
[335961546,1724644245331,-500.0,0.00012369,2]
[335961548,1724644245340,-500.0,0.00012369,2]
[335961550,1724644245350,-1088.9,0.00012369,2]
[335961552,1724644245359,-500.0,0.00012369,2]
[335961554,1724644245369,-500.0,0.00012369,2]
[335961556,1724644245378,-500.0,0.00012369,2]
[335961558,1724644245387,-500.0,0.00012369,2]
[335961560,1724644245397,-1251.58,0.00012369,2]
[335961562,1724644245406,-648.92,0.00012369,2]
[335961564,1724644245415,-500.0,0.00012369,2]
[335961566,1724644245424,-500.0,0.00012369,2]
[335961568,1724644245433,-500.0,0.00012369,2]
[335961570,1724644245443,-1040.09,0.00012369,2]
[335961572,1724644245453,-169.57906181,0.00012369,2]
[335961574,1724644245462,-565.06,0.00012369,2]
[335961576,1724644245471,-529.48,0.00012369,2]
[335961578,1724644245481,-153.01881869,0.00012369,2]
[335961579,1724644245490,-500.0,0.00012369,2]
[335961581,1724644245499,-500.0,0.00012369,2]
[335961583,1724644245510,-500.0,0.00012369,2]
[335961585,1724644245519,-500.0,0.00012369,2]
[335961587,1724644245528,-556.34709544,0.00012369,2]
[335961589,1724644245537,-1215.16,0.00012369,2]
[335961591,1724644245547,-500.0,0.00012369,2]
[335961593,1724644245556,-583.52,0.00012369,2]
[335961595,1724644245566,-500.0,0.00012369,2]
[335961597,1724644245576,-503.45,0.00012369,2]
[335961599,1724644245585,-552.42,0.00012369,2]
[335961601,1724644245594,-682.34,0.00012369,2]
[335961603,1724644245603,-594.16,0.00012369,2]
[335961605,1724644245612,-500.0,0.00012369,2]
[335961607,1724644245622,-500.0,0.00012369,2]
[335961609,1724644245631,-500.0,0.00012369,2]
[335961611,1724644245640,-500.0,0.00012369,2]
[335961613,1724644245650,-647.87,0.00012369,2]
[335961614,1724644245659,-500.0,0.00012369,2]
[335961616,1724644245667,-500.0,0.00012369,2]
[335961618,1724644245677,-745.47,0.00012369,2]
[335961620,1724644245686,-506.70842633,0.00012369,2]
[335961623,1724644245695,-500.0,0.00012369,2]
[335961625,1724644245705,-500.0,0.00012369,2]
[335961627,1724644245714,-500.0,0.00012369,2]
[335961629,1724644245724,-672.1,0.00012369,2]
[335961631,1724644245733,-594.55,0.00012369,2]
[335961633,1724644245742,-537.44,0.00012369,2]
[335961635,1724644245752,-500.0,0.00012369,2]
[335961637,1724644245761,-500.0,0.00012369,2]
[335961639,1724644245771,-723.08,0.00012369,2]
[335961641,1724644245781,-181.57135356,0.00012369,2]
[335961643,1724644245793,-500.0,0.00012369,2]
[335961645,1724644245803,-500.0,0.00012369,2]
[335961649,1724644245812,-514.1,0.00012369,2]
[335961651,1724644245821,-523.89,0.00012369,2]
[335961653,1724644245831,-500.0,0.00012369,2]
[335961655,1724644245842,-500.0,0.00012369,2]
[335961657,1724644245852,-500.0,0.00012369,2]
[335961659,1724644245863,-500.0,0.00012369,2]
[335961661,1724644245875,-500.0,0.00012369,2]
[335961663,1724644245884,-433.24407503,0.00012369,2]
[335961665,1724644245893,-500.0,0.00012369,2]
[335961667,1724644245902,-1098.74,0.00012369,2]
[335961669,1724644245912,-500.0,0.00012369,2]
[335961671,1724644245922,-500.0,0.00012369,2]
[335961672,1724644245931,-500.0,0.00012369,2]
[335961675,1724644245940,-500.0,0.00012369,2]
[335961677,1724644245951,-500.0,0.00012369,2]
[335961679,1724644245961,-162.21700301,0.00012369,2]
[335961681,1724644245971,-548.8,0.00012369,2]
[335961683,1724644245980,-1087.36,0.00012369,2]
[335961685,1724644245989,-500.0,0.00012369,2]
[335961687,1724644245999,-547.6,0.00012369,2]
[335961689,1724644246008,-500.0,0.00012369,2]
[335961690,1724644246017,-500.0,0.00012369,2]
[335961693,1724644246026,-500.0,0.00012369,2]
[335961694,1724644246036,-1242.76,0.00012369,2]
[335961696,1724644246046,-1092.94,0.00012369,2]
[335961698,1724644246055,-500.0,0.00012369,2]
[335961700,1724644246065,-325.61953424,0.00012369,2]
[335961702,1724644246074,-833.3,0.00012369,2]
[335961704,1724644246083,-1077.23,0.00012369,2]
[335961706,1724644246093,-500.0,0.00012369,2]
[335961708,1724644246102,-631.51,0.00012369,2]
[335961710,1724644246110,-910.85,0.00012369,2]
[335961712,1724644246120,-500.0,0.00012369,2]
[335961714,1724644246130,-500.0,0.00012369,2]
[335961716,1724644246139,-505.02,0.00012369,2]
[335961718,1724644246149,-515.77,0.00012369,2]
[335961720,1724644246158,-500.0,0.00012369,2]
[335961722,1724644246167,-1000.01,0.00012369,2]
[335961724,1724644246177,-500.0,0.00012369,2]
[335961726,1724644246186,-755.58,0.00012369,2]
[335961728,1724644246196,-500.0,0.00012369,2]
[335961730,1724644246205,-442.40203144,0.00012369,2]
[335961732,1724644246214,-218.0644595,0.00012369,2]
[335961734,1724644246224,-675.85,0.00012369,2]
[335961736,1724644246233,-1033.41,0.00012369,2]
[335961738,1724644246242,-500.0,0.00012369,2]
[335961740,1724644246252,-860.35,0.00012369,2]
[335961742,1724644246261,-500.0,0.00012369,2]
[335961744,1724644246271,-500.0,0.00012369,2]
[335961746,1724644246281,-500.0,0.00012369,2]
[335961748,1724644246290,-500.0,0.00012369,2]
[335961750,1724644246300,-500.0,0.00012369,2]
[335961752,1724644246309,-500.0,0.00012369,2]
[335961754,1724644246318,-500.0,0.00012369,2]
[335961756,1724644246328,-500.0,0.00012369,2]
[335961758,1724644246338,-685.38,0.00012369,2]
[335961760,1724644246349,-500.0,0.00012369,2]
[335961762,1724644246361,-500.0,0.00012369,2]
[335961764,1724644246370,-500.0,0.00012369,2]
[335961766,1724644246379,-554.79,0.00012369,2]
[335961768,1724644246389,-500.0,0.00012369,2]
[335961770,1724644246397,-500.0,0.00012369,2]
[335961772,1724644246406,-847.4,0.00012369,2]
[335961774,1724644246416,-500.0,0.00012369,2]
[335961776,1724644246425,-500.0,0.00012369,2]
[335961778,1724644246434,-500.0,0.00012369,2]
[335961780,1724644246444,-743.78,0.00012369,2]
[335961783,1724644246455,-500.0,0.00012369,2]
[335961785,1724644246465,-500.0,0.00012369,2]
[335961787,1724644246474,-551.14639096,0.00012369,2]
[335961788,1724644246483,-500.0,0.00012369,2]